fUSD/lending_fUSD_20240419
["ID","MTS","AMOUNT","RATE_DAILY","PERIOD"]
[322969742,1713549067316,-1206.2,0.00016438,2]
[322969743,1713549067326,-801.2,0.00016438,2]
[322969744,1713549067337,-578.17,0.00016438,2]
[322969745,1713549067347,-628.62,0.00016438,2]
[322969746,1713549067357,-500.0,0.00016438,2]
[322969747,1713549067367,-1371.41,0.00016438,2]
[322969748,1713549067377,-1037.37,0.00016438,2]
[322969749,1713549067386,-769.65,0.00016438,2]
[322969750,1713549067396,-500.0,0.00016438,2]
[322969751,1713549067406,-703.37,0.00016438,2]
[322969752,1713549067417,-4057.3,0.00016438,2]
[322969753,1713549067427,-577.98,0.00016438,2]
[322969754,1713549067437,-717.48,0.00016438,2]
[322969755,1713549067448,-500.0,0.00016438,2]
[322969756,1713549067458,-781.04,0.00016438,2]
[322969757,1713549067468,-500.0,0.00016438,2]
[322969758,1713549067478,-3186.02,0.00016438,2]
[322969759,1713549067488,-2548.18,0.00016438,2]
[322969760,1713549067498,-500.0,0.00016438,2]
[322969761,1713549067508,-691.51,0.00016438,2]
[322969762,1713549067519,-531.17,0.00016438,2]
[322969763,1713549067529,-1155.75,0.00016438,2]
[322969764,1713549067540,-500.0,0.00016438,2]
[322969765,1713549067550,-2074.71,0.00016438,2]
[322969766,1713549067564,-4872.18,0.00016438,2]
[322969767,1713549067574,-3282.57,0.00016438,2]
[322969768,1713549067585,-1645.77,0.00016438,2]
[322969769,1713549067596,-500.0,0.00016438,2]
[322969770,1713549067607,-150.0,0.00016438,2]
[322969771,1713549067617,-1313.87,0.00016438,2]
[322969772,1713549067627,-2437.02,0.00016438,2]
[322969773,1713549067637,-782.04,0.00016438,2]
[322969774,1713549067647,-2383.9,0.00016438,2]
[322969775,1713549067657,-500.0,0.00016438,2]
[322969776,1713549067667,-2779.84,0.00016438,2]
[322969777,1713549067677,-1036.58,0.00016438,2]
[322969778,1713549067687,-1105.86,0.00016438,2]
[322969779,1713549067698,-500.0,0.00016438,2]
[322969780,1713549067708,-7224.63,0.00016438,2]
[322969781,1713549067718,-500.0,0.00016438,2]
[322969782,1713549067727,-1607.02,0.00016438,2]
[322969783,1713549067738,-649.82,0.00016438,2]
[322969784,1713549067747,-1003.02,0.00016438,2]
[322969785,1713549067757,-1847.51,0.00016438,2]
[322969786,1713549067767,-500.0,0.00016438,2]
[322969787,1713549067777,-500.0,0.00016438,2]
[322969788,1713549067787,-1561.68,0.00016438,2]
[322969789,1713549067797,-500.0,0.00016438,2]
[322969790,1713549067813,-500.0,0.00016438,2]
[322969791,1713549067823,-743.08,0.00016438,2]
[322969792,1713549067836,-500.0,0.00016438,2]
[322969793,1713549067847,-500.0,0.00016438,2]
[322969794,1713549067857,-3478.55,0.00016438,2]
[322969795,1713549067868,-538.12,0.00016438,2]
[322969796,1713549067878,-500.0,0.00016438,2]
[322969797,1713549067888,-500.0,0.00016438,2]
[322969798,1713549067898,-193.04588733,0.00016438,2]
[322969799,1713549067909,-500.0,0.00016438,2]
[322969800,1713549067919,-500.0,0.00016438,2]
[322969801,1713549067929,-1922.87,0.00016438,2]
[322969802,1713549067939,-963.07,0.00016438,2]
[322969803,1713549067948,-2182.92,0.00016438,2]
[322969804,1713549067958,-513.91,0.00016438,2]
[322969805,1713549067968,-500.0,0.00016438,2]
[322969806,1713549067978,-500.0,0.00016438,2]
[322969807,1713549067988,-500.0,0.00016438,2]
[322969808,1713549067998,-7468.03,0.00016438,2]
[322969809,1713549068008,-500.0,0.00016438,2]
[322969810,1713549068018,-650.52,0.00016438,2]
[322969811,1713549068027,-2260.46,0.00016438,2]
[322969812,1713549068038,-1789.44,0.00016438,2]
[322969813,1713549068048,-500.0,0.00016438,2]
[322969814,1713549068064,-500.0,0.00016438,2]
[322969815,1713549068074,-500.0,0.00016438,2]
[322969816,1713549068084,-659.53,0.00016438,2]
[322969817,1713549068094,-500.0,0.00016438,2]
[322969818,1713549068104,-500.0,0.00016438,2]
[322969819,1713549068113,-500.0,0.00016438,2]
[322969820,1713549068123,-500.0,0.00016438,2]
[322969821,1713549068133,-500.0,0.00016438,2]
[322969822,1713549068144,-1195.21,0.00016438,2]
[322969823,1713549068153,-4752.52,0.00016438,2]
[322969824,1713549068163,-1952.95,0.00016438,2]
[322969825,1713549068174,-500.0,0.00016438,2]
[322969826,1713549068185,-743.02,0.00016438,2]
[322969827,1713549068195,-1303.25,0.00016438,2]
[322969828,1713549068204,-579.71,0.00016438,2]
[322969829,1713549068214,-500.0,0.00016438,2]
[322969830,1713549068224,-500.0,0.00016438,2]
[322969831,1713549068234,-1841.48,0.00016438,2]
[322969832,1713549068243,-500.0,0.00016438,2]
[322969833,1713549068254,-838.85,0.00016438,2]
[322969834,1713549068264,-1333.92,0.00016438,2]
[322969835,1713549068273,-500.0,0.00016438,2]
[322969836,1713549068283,-3273.6,0.00016438,2]
[322969837,1713549068293,-500.0,0.00016438,2]
[322969838,1713549068308,-1146.03,0.00016438,2]
[322969839,1713549068318,-500.0,0.00016438,2]
[322969840,1713549068328,-5378.1,0.00016438,2]
[322969841,1713549068337,-500.0,0.00016438,2]
[322969842,1713549068346,-763.33,0.00016438,2]
[322969843,1713549068356,-500.0,0.00016438,2]
[322969844,1713549068366,-842.36,0.00016438,2]
[322969845,1713549068375,-500.0,0.00016438,2]
[322969846,1713549068385,-500.0,0.00016438,2]
[322969847,1713549068395,-1168.39,0.00016438,2]
[322969848,1713549068405,-2143.68,0.00016438,2]
[322969849,1713549068415,-18287.53,0.00016438,2]
[322969850,1713549068424,-500.0,0.00016438,2]
[322969851,1713549068435,-772.65,0.00016438,2]
[322969852,1713549068447,-1071.86,0.00016438,2]
[322969853,1713549068457,-500.0,0.00016438,2]
[322969854,1713549068467,-500.0,0.00016438,2]
[322969855,1713549068476,-865.07,0.00016438,2]
[322969856,1713549068485,-137.36874331,0.00016438,2]
[322969857,1713549068543,-1790.02125669,0.00016438,2]
[322969858,1713549068554,-3132.12,0.00016438,2]
[322969859,1713549068563,-200.0,0.00016438,2]
[322969860,1713549068573,-151.0,0.00016438,2]
[322969861,1713549068581,-151.0,0.00016438,2]
[322969862,1713549068590,-151.0,0.00016438,2]
[322969863,1713549068599,-151.600732,0.00016438,2]
[322969864,1713549068609,-151.739637,0.00016438,2]
[322969865,1713549068618,-151.0,0.00016438,2]
[322969866,1713549068628,-151.0,0.00016438,2]
[322969867,1713549068637,-151.0,0.00016438,2]
[322969868,1713549068647,-151.0,0.00016438,2]
[322969869,1713549068657,-151.0,0.00016438,2]
[322969870,1713549068667,-174.941181,0.00016438,2]
[322969871,1713549068677,-151.0,0.00016438,2]
[322969872,1713549068686,-151.0,0.00016438,2]
[322969873,1713549068695,-151.0,0.00016438,2]
[322969874,1713549068705,-151.0,0.00016438,2]
[322969875,1713549068714,-151.0,0.00016438,2]
[322969876,1713549068724,-278.127237,0.00016438,2]
[322969877,1713549068734,-151.0,0.00016438,2]
[322969878,1713549068743,-151.0,0.00016438,2]
[322969879,1713549068753,-151.0,0.00016438,2]
[322969880,1713549068762,-1000.0,0.00016438,2]
[322969881,1713549068772,-151.070458,0.00016438,2]
[322969882,1713549068782,-151.0,0.00016438,2]
[322969883,1713549068792,-151.0,0.00016438,2]
[322969884,1713549068805,-150.0,0.00016438,2]
[322969885,1713549068818,-711.35,0.00016438,2]
[322969886,1713549068829,-4265.32359302,0.00016438,2]
[322969887,1713549069313,-12370.58640698,0.00016438,2]
[322969888,1713549069323,-7199.807428,0.00016466,2]
[322969889,1713549069334,-1000.0,0.00016494,2]
[322969890,1713549069343,-231.91596051,0.00016499,2]
[322969891,1713549069354,-1223.49294636,0.000165,2]
[322969892,1713549069386,-19496.21587412,0.000165,2]
[322969893,1713549069408,-1002.60892211,0.000165,2]
[322969894,1713549069418,-150.0,0.000165,2]
[322969895,1713549069428,-1000.0,0.0001655,2]
[322969896,1713549069438,-1382.0,0.00016576,2]
[322969897,1713549069447,-518.0,0.00016576,2]
[322969898,1713549069457,-1000.0,0.00016606,2]
[322969899,1713549069468,-1000.0,0.00016662,2]
[322969900,1713549069478,-838.06,0.00016712,2]
[322969901,1713549069488,-500.0,0.00016712,2]
[322969902,1713549069497,-890.94,0.00016712,2]
[322969903,1713549069506,-500.0,0.00016712,2]
[322969904,1713549069516,-500.0,0.00016712,2]
[322969905,1713549069526,-500.0,0.00016712,2]
[322969906,1713549069535,-500.0,0.00016712,2]
[322969907,1713549069545,-806.83,0.00016712,2]
[322969908,1713549069558,-500.0,0.00016712,2]
[322969909,1713549069570,-980.46,0.00016712,2]
[322969910,1713549069580,-807.13,0.00016712,2]
[322969911,1713549069590,-500.0,0.00016712,2]
[322969912,1713549069600,-500.0,0.00016712,2]
[322969913,1713549069611,-500.0,0.00016712,2]
[322969914,1713549069621,-500.0,0.00016712,2]
[322969915,1713549069631,-500.0,0.00016712,2]
[322969916,1713549069641,-1302.51,0.00016712,2]
[322969917,1713549069650,-500.0,0.00016712,2]
[322969918,1713549069660,-500.0,0.00016712,2]
[322969919,1713549069670,-1040.95,0.00016712,2]
[322969920,1713549069679,-578.85,0.00016712,2]
[322969921,1713549069689,-500.0,0.00016712,2]
[322969922,1713549069698,-500.0,0.00016712,2]
[322969923,1713549069708,-500.0,0.00016712,2]
[322969924,1713549069718,-500.0,0.00016712,2]
[322969925,1713549069728,-500.0,0.00016712,2]
[322969926,1713549069738,-500.0,0.00016712,2]
[322969927,1713549069748,-1061.79,0.00016712,2]
[322969928,1713549069758,-500.0,0.00016712,2]
[322969929,1713549069769,-500.0,0.00016712,2]
[322969930,1713549069780,-500.0,0.00016712,2]
[322969931,1713549069790,-500.0,0.00016712,2]
[322969932,1713549069800,-504.48,0.00016712,2]
[322969933,1713549069815,-892.82,0.00016712,2]
[322969934,1713549069826,-500.0,0.00016712,2]
[322969935,1713549069836,-500.0,0.00016712,2]
[322969936,1713549069846,-828.97,0.00016712,2]
[322969937,1713549069858,-500.0,0.00016712,2]
[322969938,1713549069868,-500.0,0.00016712,2]
[322969939,1713549069878,-586.87,0.00016712,2]
[322969940,1713549069889,-506.27,0.00016712,2]
[322969941,1713549069899,-577.81,0.00016712,2]
[322969942,1713549069910,-151.0,0.00016712,2]
[322969943,1713549069919,-500.0,0.00016712,2]
[322969944,1713549069930,-500.0,0.00016712,2]
[322969945,1713549069940,-500.0,0.00016712,2]
[322969946,1713549069950,-526.05,0.00016712,2]
[322969947,1713549069960,-500.0,0.00016712,2]
[322969948,1713549069970,-500.0,0.00016712,2]
[322969949,1713549069980,-500.0,0.00016712,2]
[322969950,1713549069990,-692.74,0.00016712,2]
[322969951,1713549070000,-151.0,0.00016712,2]
[322969952,1713549070010,-500.0,0.00016712,2]
[322969953,1713549070020,-500.0,0.00016712,2]
[322969954,1713549070029,-500.0,0.00016712,2]
[322969955,1713549070039,-500.0,0.00016712,2]
[322969956,1713549070049,-888.43,0.00016712,2]
[322969957,1713549070062,-500.0,0.00016712,2]
[322969958,1713549070072,-500.0,0.00016712,2]
[322969959,1713549070081,-500.0,0.00016712,2]
[322969960,1713549070091,-425.75471158,0.00016712,2]
[322969961,1713549070101,-500.0,0.00016712,2]
[322969962,1713549070110,-500.0,0.00016712,2]
[322969963,1713549070120,-865.99,0.00016712,2]
[322969964,1713549070130,-500.0,0.00016712,2]
[322969965,1713549070140,-918.95,0.00016712,2]
[322969966,1713549070150,-500.0,0.00016712,2]
[322969967,1713549070160,-500.0,0.00016712,2]
[322969968,1713549070170,-729.96,0.00016712,2]
[322969969,1713549070180,-957.17,0.00016712,2]
[322969970,1713549070189,-518.98,0.00016712,2]
[322969971,1713549070198,-658.68,0.00016712,2]
[322969972,1713549070208,-404.43324277,0.00016712,2]
[322969973,1713549070218,-488.4498333,0.00016712,2]
[322969974,1713549070228,-500.0,0.00016712,2]
[322969975,1713549070237,-549.75,0.00016712,2]
[322969976,1713549070247,-1157.13,0.00016712,2]
[322969977,1713549070257,-500.0,0.00016712,2]
[322969978,1713549070268,-500.0,0.00016712,2]
[322969979,1713549070278,-500.0,0.00016712,2]
[322969980,1713549070288,-500.0,0.00016712,2]
[322969981,1713549070297,-500.0,0.00016712,2]
[322969982,1713549070309,-515.55,0.00016712,2]
[322969983,1713549070319,-500.0,0.00016712,2]
[322969984,1713549070331,-151.0,0.00016712,2]
[322969985,1713549070344,-610.65,0.00016712,2]
[322969986,1713549070360,-500.0,0.00016712,2]
[322969987,1713549070375,-500.0,0.00016712,2]
[322969988,1713549070394,-500.0,0.00016712,2]
[322969989,1713549070407,-1201.11,0.00016712,2]
[322969990,1713549070422,-675.74,0.00016712,2]
[322969991,1713549070438,-500.0,0.00016712,2]
[322969992,1713549070458,-500.0,0.00016712,2]
[322969993,1713549070475,-846.99,0.00016712,2]
[322969994,1713549070489,-603.65671716,0.00016712,2]
[322969995,1713549070502,-886.06,0.00016712,2]
[322969996,1713549070512,-500.0,0.00016712,2]
[322969997,1713549070522,-500.0,0.00016712,2]
[322969998,1713549070533,-500.0,0.00016712,2]
[322969999,1713549070554,-1702.17,0.00016712,2]
[322970000,1713549070564,-500.0,0.00016712,2]
[322970001,1713549070574,-549.99,0.00016712,2]
[322970002,1713549070584,-500.0,0.00016712,2]
[322970003,1713549070593,-500.0,0.00016712,2]
[322970004,1713549070603,-500.0,0.00016712,2]
[322970005,1713549070616,-500.0,0.00016712,2]
[322970006,1713549070626,-641.09,0.00016712,2]
[322970007,1713549070635,-500.0,0.00016712,2]
[322970008,1713549070646,-990.19,0.00016712,2]
[322970009,1713549070655,-500.0,0.00016712,2]
[322970010,1713549070665,-500.0,0.00016712,2]
[322970011,1713549070674,-500.0,0.00016712,2]
[322970012,1713549070685,-1147.71,0.00016712,2]
[322970013,1713549070695,-500.0,0.00016712,2]
[322970014,1713549070705,-854.56,0.00016712,2]
[322970015,1713549070727,-500.0,0.00016712,2]
[322970016,1713549070757,-500.0,0.00016712,2]
[322970017,1713549070773,-885.74,0.00016712,2]
[322970018,1713549070787,-752.73,0.00016712,2]
[322970019,1713549070808,-500.0,0.00016712,2]
[322970020,1713549070831,-681.83,0.00016712,2]
[322970021,1713549070841,-233.1229561,0.00016712,2]
[322970022,1713549070872,-500.0,0.00016712,2]
[322970023,1713549070882,-880.04,0.00016712,2]
[322970024,1713549070895,-564.9,0.00016712,2]
[322970025,1713549070906,-721.92,0.00016712,2]
[322970026,1713549070925,-935.08,0.00016712,2]
[322970027,1713549070935,-500.0,0.00016712,2]
[322970028,1713549070945,-733.25,0.00016712,2]
[322970029,1713549070955,-1339.82,0.00016712,2]
[322970030,1713549070971,-500.0,0.00016712,2]
[322970031,1713549070986,-524.12,0.00016712,2]
[322970032,1713549071005,-500.0,0.00016712,2]
[322970033,1713549071015,-1159.68,0.00016712,2]
[322970034,1713549071034,-500.0,0.00016712,2]
[322970035,1713549071057,-500.0,0.00016712,2]
[322970036,1713549071099,-500.0,0.00016712,2]
[322970037,1713549071117,-500.0,0.00016712,2]
[322970038,1713549071131,-605.75,0.00016712,2]
[322970039,1713549071146,-742.13,0.00016712,2]
[322970040,1713549071159,-500.0,0.00016712,2]
[322970041,1713549071169,-554.77,0.00016712,2]
[322970042,1713549071186,-500.0,0.00016712,2]
[322970043,1713549071224,-500.0,0.00016712,2]
[322970044,1713549071239,-1291.32,0.00016712,2]
[322970045,1713549071271,-500.0,0.00016712,2]
[322970046,1713549071289,-500.0,0.00016712,2]
[322970047,1713549071307,-904.2,0.00016712,2]
[322970048,1713549071339,-500.0,0.00016712,2]
[322970049,1713549071359,-500.0,0.00016712,2]
[322970050,1713549071370,-500.0,0.00016712,2]
[322970051,1713549071381,-879.41,0.00016712,2]
[322970052,1713549071391,-500.0,0.00016712,2]
[322970053,1713549071402,-500.0,0.00016712,2]
[322970054,1713549071412,-893.44,0.00016712,2]
[322970055,1713549071423,-500.0,0.00016712,2]
[322970056,1713549071434,-500.0,0.00016712,2]
[322970057,1713549071444,-500.0,0.00016712,2]
[322970058,1713549071455,-1604.62,0.00016712,2]
[322970059,1713549071465,-655.74,0.00016712,2]
[322970060,1713549071475,-500.0,0.00016712,2]
[322970061,1713549071485,-500.0,0.00016712,2]
[322970062,1713549071495,-500.0,0.00016712,2]
[322970063,1713549071505,-1769.64,0.00016712,2]
[322970064,1713549071515,-500.0,0.00016712,2]
[322970065,1713549071525,-584.75,0.00016712,2]
[322970066,1713549071535,-650.54,0.00016712,2]
[322970067,1713549071545,-575.42,0.00016712,2]
[322970068,1713549071557,-957.19,0.00016712,2]
[322970069,1713549071567,-657.56,0.00016712,2]
[322970070,1713549071577,-500.0,0.00016712,2]
[322970071,1713549071587,-550.94,0.00016712,2]
[322970072,1713549071597,-500.0,0.00016712,2]
[322970073,1713549071607,-757.8,0.00016712,2]
[322970074,1713549071617,-540.23,0.00016712,2]
[322970075,1713549071626,-1174.94,0.00016712,2]
[322970076,1713549071636,-932.88,0.00016712,2]
[322970077,1713549071646,-500.0,0.00016712,2]
[322970078,1713549071655,-500.0,0.00016712,2]
[322970079,1713549071665,-509.49,0.00016712,2]
[322970080,1713549071675,-500.0,0.00016712,2]
[322970081,1713549071685,-680.03,0.00016712,2]
[322970082,1713549071694,-500.0,0.00016712,2]
[322970083,1713549071704,-1239.24,0.00016712,2]
[322970084,1713549072000,-500.0,0.00016712,2]
[322970085,1713549072011,-969.79,0.00016712,2]
[322970086,1713549072023,-500.0,0.00016712,2]
[322970087,1713549072033,-524.02,0.00016712,2]
[322970088,1713549072044,-500.0,0.00016712,2]
[322970089,1713549072057,-507.22,0.00016712,2]
[322970090,1713549072068,-617.59,0.00016712,2]
[322970091,1713549072079,-728.34,0.00016712,2]
[322970092,1713549072089,-500.0,0.00016712,2]
[322970093,1713549072099,-500.0,0.00016712,2]
[322970094,1713549072109,-604.52,0.00016712,2]
[322970095,1713549072120,-500.0,0.00016712,2]
[322970096,1713549072131,-500.0,0.00016712,2]
[322970097,1713549072141,-500.0,0.00016712,2]
[322970098,1713549072151,-552.05,0.00016712,2]
[322970099,1713549072162,-826.14,0.00016712,2]
[322970100,1713549072172,-151.509902,0.00016712,2]
[322970101,1713549072183,-443.760416,0.00016712,2]
[322970102,1713549072193,-500.0,0.00016712,2]
[322970103,1713549072203,-1120.87,0.00016712,2]
[322970104,1713549072214,-2575.62,0.00016712,2]
[322970105,1713549072229,-586.51817591,0.00016712,2]
[322970106,1713549072239,-1048.52,0.00016712,2]
[322970107,1713549072248,-151.0,0.00016712,2]
[322970108,1713549072259,-151.0,0.00016712,2]
[322970109,1713549072269,-917.74,0.00016712,2]
[322970110,1713549072279,-734.66,0.00016712,2]
[322970111,1713549072289,-151.0,0.00016712,2]
[322970112,1713549072299,-500.0,0.00016712,2]
[322970113,1713549072311,-923.01,0.00016712,2]
[322970114,1713549072322,-650.76,0.00016712,2]
[322970115,1713549072332,-1444.29,0.00016712,2]
[322970116,1713549072343,-500.0,0.00016712,2]
[322970117,1713549072352,-500.0,0.00016712,2]
[322970118,1713549072362,-500.0,0.00016712,2]
[322970119,1713549072372,-2192.98,0.00016712,2]
[322970120,1713549072381,-500.0,0.00016712,2]
[322970121,1713549072391,-151.0,0.00016712,2]
[322970122,1713549072401,-500.0,0.00016712,2]
[322970123,1713549072411,-1008.16,0.00016712,2]
[322970124,1713549072422,-500.0,0.00016712,2]
[322970125,1713549072432,-500.0,0.00016712,2]
[322970126,1713549072442,-500.0,0.00016712,2]
[322970127,1713549072452,-750.57,0.00016712,2]
[322970128,1713549072462,-151.0,0.00016712,2]
[322970129,1713549072473,-2835.91,0.00016712,2]
[322970130,1713549072483,-500.0,0.00016712,2]
[322970131,1713549072493,-500.0,0.00016712,2]
[322970132,1713549072504,-619.96,0.00016712,2]
[322970133,1713549072514,-600.28,0.00016712,2]
[322970134,1713549072525,-1139.96,0.00016712,2]
[322970135,1713549072535,-744.26,0.00016712,2]
[322970136,1713549072545,-500.0,0.00016712,2]
[322970137,1713549072558,-500.0,0.00016712,2]
[322970138,1713549072569,-500.0,0.00016712,2]
[322970139,1713549072579,-500.0,0.00016712,2]
[322970140,1713549072589,-604.17,0.00016712,2]
[322970141,1713549072599,-874.35,0.00016712,2]
[322970142,1713549072609,-500.0,0.00016712,2]
[322970143,1713549072619,-500.0,0.00016712,2]
[322970144,1713549072629,-616.55,0.00016712,2]
[322970145,1713549072639,-500.0,0.00016712,2]
[322970146,1713549072649,-500.0,0.00016712,2]
[322970147,1713549072659,-1341.02,0.00016712,2]
[322970148,1713549072669,-705.26,0.00016712,2]
[322970149,1713549072678,-500.0,0.00016712,2]
[322970150,1713549072688,-1053.54,0.00016712,2]
[322970151,1713549072698,-553.17,0.00016712,2]
[322970152,1713549072708,-151.0,0.00016712,2]
[322970153,1713549072719,-500.0,0.00016712,2]
[322970154,1713549072729,-2064.71,0.00016712,2]
[322970155,1713549072740,-638.66,0.00016712,2]
[322970156,1713549072751,-538.42,0.00016712,2]
[322970157,1713549072761,-985.71,0.00016712,2]
[322970158,1713549072772,-258.099134,0.00016712,2]
[322970159,1713549072783,-1000.38,0.00016712,2]
[322970160,1713549072794,-151.182824,0.00016712,2]
[322970161,1713549072809,-258.099134,0.00016712,2]
[322970162,1713549072821,-1077.63,0.00016712,2]
[322970163,1713549072832,-500.0,0.00016712,2]
[322970164,1713549072843,-1852.81,0.00016712,2]
[322970165,1713549072855,-225.701994,0.00016712,2]
[322970166,1713549072866,-611.6,0.00016712,2]
[322970167,1713549072876,-993.72,0.00016712,2]
[322970168,1713549072887,-225.701994,0.00016712,2]
[322970169,1713549072899,-647.04674022,0.00016712,2]
[322970170,1713549072909,-500.0,0.00016712,2]
[322970171,1713549072920,-504.71,0.00016712,2]
[322970172,1713549072932,-152.282328,0.00016712,2]
[322970173,1713549072943,-500.0,0.00016712,2]
[322970174,1713549072954,-1153.45,0.00016712,2]
[322970175,1713549072965,-500.0,0.00016712,2]
[322970176,1713549072976,-500.0,0.00016712,2]
[322970177,1713549072987,-151.0,0.00016712,2]
[322970178,1713549072997,-500.0,0.00016712,2]
[322970179,1713549073009,-500.0,0.00016712,2]
[322970180,1713549073020,-1086.77,0.00016712,2]
[322970181,1713549073031,-500.0,0.00016712,2]
[322970182,1713549073042,-500.0,0.00016712,2]
[322970183,1713549073052,-805.09,0.00016712,2]
[322970184,1713549073066,-500.0,0.00016712,2]
[322970185,1713549073076,-1099.41,0.00016712,2]
[322970186,1713549073088,-500.0,0.00016712,2]
[322970187,1713549073098,-533.88406538,0.00016712,2]
[322970188,1713549073109,-603.49667713,0.00016712,2]
[322970189,1713549073120,-500.0,0.00016712,2]
[322970190,1713549073131,-534.79,0.00016712,2]
[322970191,1713549073141,-500.0,0.00016712,2]
[322970192,1713549073152,-500.0,0.00016712,2]
[322970193,1713549073162,-1194.31,0.00016712,2]
[322970194,1713549073172,-500.0,0.00016712,2]
[322970195,1713549073183,-839.94,0.00016712,2]
[322970196,1713549073193,-1435.15,0.00016712,2]
[322970197,1713549073203,-151.0,0.00016712,2]
[322970198,1713549073213,-500.0,0.00016712,2]
[322970199,1713549073224,-536.95,0.00016712,2]
[322970200,1713549073234,-500.0,0.00016712,2]
[322970201,1713549073245,-500.0,0.00016712,2]
[322970202,1713549073255,-500.0,0.00016712,2]
[322970203,1713549073265,-500.0,0.00016712,2]
[322970204,1713549073275,-520.65,0.00016712,2]
[322970205,1713549073286,-740.66,0.00016712,2]
[322970206,1713549073296,-500.0,0.00016712,2]
[322970207,1713549073309,-788.98,0.00016712,2]
[322970208,1713549073319,-804.65,0.00016712,2]
[322970209,1713549073329,-2761.35,0.00016712,2]
[322970210,1713549073339,-1427.13,0.00016712,2]
[322970211,1713549073349,-1247.52,0.00016712,2]
[322970212,1713549073358,-219.460082,0.00016712,2]
[322970213,1713549073368,-219.460082,0.00016712,2]
[322970214,1713549073379,-151.785982,0.00016712,2]
[322970215,1713549073390,-500.0,0.00016712,2]
[322970216,1713549073401,-542.15,0.00016712,2]
[322970217,1713549073411,-788.3,0.00016712,2]
[322970218,1713549073421,-500.0,0.00016712,2]
[322970219,1713549073431,-500.0,0.00016712,2]
[322970220,1713549073441,-842.49,0.00016712,2]
[322970221,1713549073452,-500.0,0.00016712,2]
[322970222,1713549073461,-765.93,0.00016712,2]
[322970223,1713549073471,-500.0,0.00016712,2]
[322970224,1713549073481,-757.33,0.00016712,2]
[322970225,1713549073491,-1508.05,0.00016712,2]
[322970226,1713549073501,-500.0,0.00016712,2]
[322970227,1713549073511,-685.01,0.00016712,2]
[322970228,1713549073522,-151.0,0.00016712,2]
[322970229,1713549073531,-500.0,0.00016712,2]
[322970230,1713549073542,-151.0,0.00016712,2]
[322970231,1713549073552,-1003.81,0.00016712,2]
[322970232,1713549073565,-151.0,0.00016712,2]
[322970233,1713549073575,-556.4,0.00016712,2]
[322970234,1713549073585,-151.0,0.00016712,2]
[322970235,1713549073595,-909.64,0.00016712,2]
[322970236,1713549073605,-500.0,0.00016712,2]
[322970237,1713549073615,-1029.57,0.00016712,2]
[322970238,1713549073625,-1377.64,0.00016712,2]
[322970239,1713549073635,-151.0,0.00016712,2]
[322970240,1713549073645,-787.83,0.00016712,2]
[322970241,1713549073655,-845.3,0.00016712,2]